bitfinex/quotes_SOLUSD_20250806
["timestamp","ask_amount","ask_price","bid_price","bid_amount"]
[1754496220989,0.03,169.48,169.47,74.5043737]
[1754496223911,0.03,169.48,169.47,64.74696496]
[1754496225198,0.03,169.48,169.47,58.84621557]
[1754496225389,0.72,169.48,169.47,58.84621557]
[1754496225590,0.03,169.48,169.47,64.74696496]
[1754496226610,10.47740874,169.48,169.47,43.74]
[1754496227919,0.03,169.48,169.47,49.64074939]
[1754496228086,0.03,169.48,169.47,74.5043737]
[1754496228579,0.03,169.48,169.47,68.58362431]
[1754496228802,0.03,169.48,169.47,58.82621557]
[1754496229311,0.03,169.48,169.47,68.58362431]
[1754496229513,0.03,169.48,169.47,58.82621557]
[1754496230006,0.03,169.48,169.47,74.4843737]
[1754496230398,0.03,169.48,169.47,49.62074939]
[1754496230594,0.72,169.48,169.47,43.72]
[1754496230905,0.72,169.48,169.47,49.62074939]
[1754496231211,0.72,169.48,169.47,43.72]
[1754496231789,10.47740874,169.48,169.47,43.72]
[1754496233409,0.72,169.48,169.47,43.72]
[1754496233717,10.47740874,169.48,169.47,43.72]
[1754496233886,0.03,169.48,169.47,43.72]
[1754496234090,0.03,169.48,169.47,49.62074939]
[1754496236509,0.03,169.48,169.47,74.4843737]
[1754496236819,0.69,169.57,169.48,15.10621557]
[1754496236988,9.75740874,169.56,169.51,9.75740874]
[1754496237183,9.75740874,169.53,169.52,43.72]
[1754496239416,10.44740874,169.55,169.54,43.7]
[1754496240014,10.44740874,169.55,169.52,43.7]
[1754496240217,0.69,169.54,169.52,43.7]
[1754496240722,0.69,169.54,169.52,49.59897508]
[1754496240926,0.69,169.53,169.52,43.7]
[1754496241230,10.44740874,169.53,169.42,29.8618013]
[1754496241405,9.75740874,169.48,169.43,53.45740874]
[1754496241607,10.44740874,169.51,169.46,9.75740874]
[1754496241823,10.44740874,169.5,169.47,43.7]
[1754496242014,9.75740874,169.5,169.47,43.7]
[1754496242214,0.69,169.49,169.47,43.7]
[1754496242431,0.69,169.49,169.47,49.60073183]
[1754496242627,9.75740874,169.51,169.47,49.60073183]
[1754496242824,9.75740874,169.49,169.46,5.90106756]
[1754496243130,3.95133856,169.55,169.44,14.75430425]
[1754496243131,0.66,169.48,169.47,43.7]
[1754496243332,10.41740874,169.48,169.42,15.10621557]
[1754496243525,9.75740874,169.45,169.43,43.7]
[1754496243717,10.41740874,169.47,169.43,43.7]
[1754496243915,10.41740874,169.5,169.45,9.75740874]
[1754496244115,10.41740874,169.49,169.46,49.60107188]
[1754496244330,0.66,169.49,169.46,49.60107188]
[1754496244631,10.41740874,169.52,169.47,9.75740874]
[1754496244809,9.75740874,169.48,169.46,43.7]
[1754496245012,9.75740874,169.48,169.4,9.75740874]
[1754496245013,10.41740874,169.47,169.39,15.10621557]
[1754496245215,3.9527968,169.51,169.37,21.0104489]
[1754496245216,9.75740874,169.43,169.41,15.10621557]
[1754496245512,9.75740874,169.43,169.42,43.7]
[1754496245707,10.41740874,169.43,169.37,5.90423333]
[1754496246025,9.75740874,169.4,169.39,5.90353621]
[1754496246232,9.75740874,169.4,169.38,49.60387749]
[1754496246430,0.66,169.43,169.39,15.10621557]
[1754496246723,9.75740874,169.43,169.4,43.7]
[1754496247314,10.41740874,169.46,169.41,15.10621557]
[1754496247508,9.75740874,169.45,169.41,15.10621557]
[1754496248236,10.41740874,169.45,169.41,21.00895766]
[1754496248550,9.75740874,169.43,169.4,43.7]
[1754496248738,9.75740874,169.42,169.4,43.7]
[1754496248912,9.75740874,169.41,169.4,43.7]
[1754496249108,10.41740874,169.41,169.4,43.7]
[1754496249312,0.66,169.45,169.4,59.36059646]
[1754496249522,9.75740874,169.46,169.4,59.36059646]
[1754496249922,9.75740874,169.44,169.4,49.60318772]
[1754496250219,10.41740874,169.44,169.4,49.60318772]
[1754496250429,9.75740874,169.45,169.4,59.36059646]
[1754496250632,9.75740874,169.46,169.41,15.10621557]
[1754496250837,10.41740874,169.49,169.44,9.75740874]
[1754496251023,9.75740874,169.5,169.44,53.45740874]
[1754496251425,10.41740874,169.49,169.44,43.7]
[1754496251937,9.75740874,169.48,169.44,43.7]
[1754496252121,9.75740874,169.46,169.44,49.60170888]
[1754496252362,4.61661205,169.51,169.44,59.35911762]
[1754496252664,9.75740874,169.49,169.44,59.35911762]
[1754496252846,9.75740874,169.48,169.45,43.7]
[1754496253044,10.41740874,169.48,169.45,43.7]
[1754496253244,10.41740874,169.47,169.45,43.7]
[1754496253434,9.75740874,169.46,169.45,43.7]
[1754496253632,10.41740874,169.47,169.45,43.7]
[1754496253843,10.41740874,169.46,169.43,49.60208856]
[1754496254072,10.41740874,169.46,169.44,0.06]
[1754496254272,0.66,169.46,169.44,0.06]
[1754496254650,10.41740874,169.46,169.44,0.06]
[1754496254854,0.66,169.45,169.44,0.06]
[1754496255260,10.41740874,169.45,169.44,0.06]
[1754496258647,26.66,169.47,169.44,0.06]
[1754496258855,10.41740874,169.45,169.44,0.06]
[1754496259064,0.66,169.45,169.44,0.06]
[1754496259260,10.41740874,169.45,169.44,0.06]
[1754496259674,10.41740874,169.45,169.42,0.06]
[1754496259972,9.75740874,169.43,169.42,0.06]
[1754496260172,0.66,169.44,169.38,5.90383657]
[1754496260353,9.75740874,169.41,169.38,5.90383657]
[1754496260550,9.75740874,169.41,169.38,21.01005214]
[1754496260745,0.66,169.4,169.37,43.7]
[1754496260963,0.66,169.4,169.37,49.60419557]
[1754496261161,9.75740874,169.39,169.37,49.60419557]
[1754496261362,9.75740874,169.39,169.37,43.7]
[1754496261559,4.24928247,169.43,169.32,0.12]
[1754496261871,0.66,169.42,169.35,9.75740874]
[1754496262055,0.66,169.44,169.38,5.90388475]
[1754496262252,26.66,169.44,169.39,15.10621557]
[1754496262464,9.75740874,169.43,169.39,15.10621557]
[1754496262783,0.66,169.47,169.41,15.10621557]
[1754496262991,0.66,169.47,169.41,68.56362431]
[1754496263472,9.75740874,169.44,169.42,15.10621557]
[1754496263674,9.75740874,169.46,169.42,15.10621557]
[1754496263976,9.75740874,169.47,169.42,24.86362431]
[1754496264175,10.41740874,169.46,169.43,5.90214247]
[1754496264957,9.75740874,169.46,169.42,15.10621557]
[1754496265178,9.75740874,169.45,169.42,21.00860267]
[1754496265363,10.41740874,169.46,169.42,21.00860267]
[1754496266659,3.9625622,169.49,169.4,58.78621557]
[1754496266660,9.75740874,169.44,169.4,58.78621557]
[1754496266859,9.75740874,169.45,169.4,58.78621557]
[1754496267064,9.75740874,169.46,169.4,68.54362431]
[1754496267278,9.75740874,169.46,169.42,15.10621557]
[1754496267870,9.75740874,169.45,169.41,15.10621557]
[1754496268076,10.41740874,169.45,169.41,15.10621557]
[1754496268272,9.75740874,169.44,169.41,21.00888733]
[1754496268790,10.41740874,169.45,169.41,21.00888733]
[1754496269372,9.75740874,169.45,169.41,21.00888733]
[1754496269570,9.75740874,169.42,169.4,43.68]
[1754496269770,9.75740874,169.41,169.4,43.68]
[1754496270168,0.66,169.44,169.4,43.68]
[1754496270366,9.75740874,169.42,169.4,43.68]
[1754496270557,9.75740874,169.41,169.4,43.68]
[1754496270780,10.41740874,169.41,169.4,43.68]
[1754496270971,10.41740874,169.41,169.38,43.68]
[1754496271174,9.75740874,169.4,169.38,43.68]
[1754496271484,10.41740874,169.41,169.38,49.58371358]
[1754496271665,9.75740874,169.41,169.38,49.58371358]
[1754496271860,10.41740874,169.41,169.38,49.58371358]
[1754496272177,9.75740874,169.41,169.38,49.58371358]
[1754496272780,10.41740874,169.41,169.38,43.68]
[1754496273079,9.75740874,169.4,169.38,43.68]
[1754496273274,0.66,169.41,169.38,43.68]
[1754496273475,0.66,169.41,169.38,49.58386314]
[1754496273476,10.41740874,169.41,169.38,49.58386314]
[1754496273886,0.66,169.41,169.38,49.58386314]
[1754496274084,9.75740874,169.39,169.38,43.68]
[1754496274386,10.47740874,169.39,169.37,15.10621557]
[1754496274688,10.47740874,169.38,169.36,43.68]
[1754496274891,9.75740874,169.42,169.37,24.86362431]
[1754496275092,9.75740874,169.42,169.37,15.10621557]
[1754496275397,9.75740874,169.4,169.37,15.10621557]
[1754496275576,4.6832614,169.44,169.37,24.86362431]
[1754496275898,9.75740874,169.43,169.39,15.10621557]
[1754496276194,0.72,169.42,169.4,43.68]
[1754496276392,6.18477436,169.48,169.38,49.58374727]
[1754496276393,10.47740874,169.41,169.38,49.58374727]
[1754496276564,10.47740874,169.4,169.38,43.68]
[1754496276766,9.75740874,169.4,169.38,43.68]
[1754496277284,10.47740874,169.39,169.36,15.10621557]
[1754496277484,9.75740874,169.37,169.31,15.10621557]
[1754496277686,9.75740874,169.35,169.33,15.10621557]
[1754496278395,9.75740874,169.36,169.31,5.90632567]
[1754496278629,9.75740874,169.44,169.32,58.78621557]
[1754496278630,9.75740874,169.33,169.32,58.78621557]
[1754496279800,0.72,169.4,169.32,58.90621557]
[1754496280091,26.72,169.43,169.36,15.10621557]
[1754496280302,9.75740874,169.4,169.37,43.68]
[1754496280481,9.75740874,169.4,169.38,5.90388475]
[1754496280886,9.75740874,169.41,169.39,15.10621557]
[1754496281385,0.72,169.47,169.41,15.10621557]
[1754496281592,10.47740874,169.47,169.42,9.75740874]
[1754496281783,3.96000558,169.49,169.45,15.10621557]
[1754496281784,13.71741432,169.49,169.45,15.10621557]
[1754496282096,9.75740874,169.51,169.47,15.10621557]
[1754496282291,0.03,169.52,169.49,15.10621557]
[1754496282512,9.75740874,169.5,169.47,0.12]
[1754496282710,9.75740874,169.48,169.46,43.68]
[1754496284525,9.75740874,169.48,169.46,49.58109182]
[1754496284735,9.75740874,169.51,169.47,15.10621557]
[1754496284924,13.74628485,169.52,169.47,24.86362431]
[1754496285109,0.03,169.52,169.49,15.10621557]
[1754496285303,0.03,169.52,169.51,15.10621557]
[1754496286223,0.03,169.52,169.51,21.00557254]
[1754496286804,0.03,169.52,169.51,31.16730442]
[1754496287522,0.03,169.53,169.51,31.16730442]
[1754496287523,0.03,169.53,169.52,0.28432314]
[1754496287718,1e-08,169.53,169.52,25.26794745]
[1754496287906,1e-08,169.53,169.52,25.85784834]
[1754496288308,1e-08,169.53,169.52,31.7568573]
[1754496288921,1e-08,169.53,169.52,75.4168573]
[1754496289329,1e-08,169.53,169.52,74.82695641]
[1754496290243,10.47740875,169.53,169.49,5.9000531]
[1754496290408,1e-08,169.53,169.52,9.757408]
[1754496290718,1e-08,169.53,169.52,53.39740874]
[1754496291609,1e-08,169.53,169.52,43.64]
[1754496292311,1e-08,169.53,169.52,49.53900896]
[1754496292933,1e-08,169.53,169.52,59.32641696]
[1754496293710,1e-08,169.53,169.52,64.64522453]
[1754496293911,10.47740875,169.53,169.52,43.64]
[1754496294225,10.47740875,169.53,169.51,43.62]
[1754496294538,10.47740874,169.52,169.51,43.62]
[1754496294728,1e-08,169.53,169.52,15.10621557]
[1754496295742,1e-08,169.53,169.52,21.00522453]
[1754496295951,1e-08,169.53,169.52,31.16695641]
[1754496296848,1e-08,169.53,169.52,31.7568573]
[1754496297421,1e-08,169.53,169.52,31.16695641]
[1754496298539,1e-08,169.53,169.52,31.04695641]
[1754496299048,1e-08,169.53,169.52,31.16695641]
[1754496300254,1e-08,169.53,169.52,31.04695641]
[1754496300562,1e-08,169.53,169.52,33.40983541]
[1754496301023,1e-08,169.53,169.52,23.65242667]
[1754496301224,1e-08,169.53,169.52,33.26767384]
[1754496302048,1e-08,169.53,169.52,33.40983541]
[1754496307440,1e-08,169.53,169.52,33.26767384]
[1754496307857,1e-08,169.53,169.52,33.12551227]
[1754496308058,1e-08,169.53,169.52,33.40983541]
[1754496309045,0.03,169.55,169.53,0.28432314]
[1754496309046,1e-08,169.55,169.53,0.28432314]
[1754496309244,1e-08,169.55,169.54,68.44362431]
[1754496309564,1e-08,169.55,169.54,69.31777875]
[1754496309752,0.71,169.64,169.55,41.39053871]
[1754496309938,0.71,169.64,169.63,24.86362431]
[1754496310260,0.2,169.65,169.64,21.00105169]
[1754496310447,0.2,169.65,169.64,30.75846043]
[1754496310645,0.91,169.65,169.64,30.75846043]
[1754496311143,0.91,169.65,169.64,21.00105169]
[1754496311347,0.91,169.65,169.64,15.10621557]
[1754496311646,0.91,169.65,169.55,0.58979652]
[1754496311647,10.66740874,169.65,169.55,0.58979652]
[1754496311969,9.75740874,169.62,169.57,24.86362431]
[1754496312143,9.75740874,169.63,169.6,5.89622641]
[1754496312338,9.75740874,169.63,169.61,43.58]
[1754496312562,9.75740874,169.62,169.61,43.58]
[1754496312760,10.46740874,169.62,169.61,43.58]
[1754496312975,0.71,169.62,169.61,43.58]
[1754496313163,10.46740874,169.62,169.61,43.58]
[1754496315264,0.71,169.64,169.61,49.47587878]
[1754496315580,10.46740874,169.63,169.61,49.47587878]
[1754496315786,0.71,169.62,169.61,58.68621557]
[1754496316175,0.71,169.62,169.61,64.58209435]
[1754496318789,0.74,169.62,169.61,64.58209435]
[1754496319555,10.49740874,169.62,169.61,58.68621557]
[1754496319768,10.49740874,169.62,169.61,21.00209435]
[1754496320065,0.03,169.62,169.61,64.54209435]
[1754496320392,0.03,169.62,169.61,82.25845535]
[1754496320898,0.74,169.62,169.61,82.25845535]
[1754496321391,0.74,169.62,169.61,64.54209435]
[1754496321588,0.74,169.62,169.61,74.29950335]
[1754496321776,0.74,169.62,169.61,68.40362457]
[1754496321976,10.49740874,169.62,169.61,68.40362457]
[1754496322190,10.49740874,169.62,169.61,58.64621557]
[1754496322689,10.49740874,169.62,169.61,43.54]
[1754496323472,10.49740874,169.62,169.52,15.16621557]
[1754496323681,10.49740874,169.62,169.55,25.60362457]
[1754496323682,9.75740874,169.56,169.55,25.60362457]
[1754496323881,10.46740874,169.56,169.53,5.898661]
[1754496324085,9.75740874,169.55,169.54,58.62621557]
[1754496324587,9.75740874,169.56,169.55,5.8979652]
[1754496324766,9.75740874,169.57,169.55,5.8979652]
[1754496324966,9.75740874,169.57,169.56,43.52]
[1754496325167,10.46740874,169.57,169.56,43.52]
[1754496325592,0.71,169.57,169.56,43.52]
[1754496325770,10.46740874,169.57,169.56,43.52]
[1754496326464,9.75740874,169.59,169.56,43.52]
[1754496326691,3.98105932,169.62,169.58,5.8969218]
[1754496326692,9.75740874,169.61,169.58,5.8969218]
[1754496326907,0.71,169.6,169.59,43.52]
[1754496327394,10.46740874,169.6,169.57,5.89725494]
[1754496327602,9.75740874,169.58,169.57,43.52]
[1754496327912,10.46740874,169.58,169.57,43.52]
[1754496328210,9.75740874,169.59,169.57,43.52]
[1754496328496,10.46740874,169.59,169.57,43.52]
[1754496329079,0.71,169.58,169.57,49.41719115]
[1754496329517,0.71,169.58,169.57,43.52]
[1754496329811,10.46740874,169.58,169.57,43.52]
[1754496330100,10.46740874,169.58,169.54,15.10621557]
[1754496330282,10.46740874,169.58,169.52,0.06]
[1754496330283,0.71,169.57,169.55,43.52]
[1754496330482,10.46740874,169.57,169.55,43.52]
[1754496331236,10.46740874,169.57,169.55,49.41793618]
[1754496332293,9.75740874,169.56,169.55,43.52]
[1754496332476,10.46740874,169.56,169.55,43.52]
[1754496335212,10.46740874,169.56,169.52,0.06]
[1754496335404,9.75740874,169.53,169.52,43.56]
[1754496335607,10.45740874,169.53,169.52,43.56]
[1754496336914,10.45740874,169.53,169.52,0.06]
[1754496337605,0.7,169.53,169.52,0.06]
[1754496337804,10.45740874,169.53,169.52,0.06]
[1754496341017,9.75740874,169.54,169.52,0.06]
[1754496341234,10.45740874,169.53,169.52,0.06]
[1754496342584,9.75740874,169.56,169.52,15.16621557]
[1754496342788,0.03,169.57,169.54,9.75740874]
[1754496342986,0.03,169.57,169.55,43.5]
[1754496343223,0.03,169.57,169.55,53.25740874]
[1754496343592,0.03,169.57,169.56,5.89761736]
[1754496343809,0.03,169.57,169.56,30.88124167]
[1754496343991,0.03,169.57,169.56,31.4710034]
[1754496344410,0.03,169.57,169.56,21.71359466]
[1754496344595,0.03,169.57,169.56,30.76124167]
[1754496344795,0.03,169.57,169.56,21.00383293]
[1754496346612,0.03,169.57,169.56,30.76124167]
[1754496346812,0.03,169.57,169.56,30.88124167]
[1754496347317,0.03,169.57,169.56,21.00383293]
[1754496348092,0.03,169.57,169.56,5.89761736]
[1754496348293,10.48740874,169.57,169.55,49.39796304]
[1754496348809,9.78740874,169.57,169.55,49.39796304]
[1754496349114,10.48740874,169.57,169.55,49.39796304]
[1754496349422,10.48740874,169.57,169.53,15.10621557]
[1754496349423,10.45740874,169.56,169.53,43.48]
[1754496349602,0.03,169.57,169.52,0.06]
[1754496349603,9.75740874,169.54,169.52,0.06]
[1754496349921,10.45740874,169.53,169.52,0.06]
[1754496350104,0.7,169.55,169.52,0.06]
[1754496350422,9.75740874,169.53,169.52,0.06]
[1754496350999,10.45740874,169.53,169.52,0.06]
[1754496354895,9.75740874,169.51,169.5,0.06]
[1754496355299,10.45740874,169.51,169.5,0.06]
[1754496355515,10.45740874,169.51,169.44,43.46]
[1754496355715,9.75740874,169.46,169.44,49.36179414]
[1754496356024,9.75740874,169.49,169.45,15.10621557]
[1754496356319,9.75740874,169.48,169.45,15.10621557]
[1754496356532,9.75740874,169.47,169.45,15.10621557]
[1754496357103,10.45740874,169.47,169.45,15.10621557]
[1754496357324,10.45740874,169.46,169.44,43.46]
[1754496357550,10.45740874,169.45,169.44,43.46]
[1754496358097,9.75740874,169.45,169.41,43.44]
[1754496358306,9.75740874,169.43,169.41,43.44]
[1754496358741,10.45740874,169.43,169.41,43.44]
[1754496359238,9.75740874,169.44,169.41,49.34275729]
[1754496359438,9.75740874,169.43,169.41,43.44]
[1754496359639,9.75740874,169.43,169.41,49.34281349]
[1754496359803,10.45740874,169.42,169.39,5.9034227]
[1754496360003,9.75740874,169.4,169.37,53.197409]
[1754496360234,0.7,169.43,169.38,15.10621557]
[1754496360408,9.75740874,169.42,169.38,15.10621557]
[1754496360605,4.95001121,169.52,169.42,15.10621557]
[1754496360839,10.45740874,169.49,169.44,9.75740874]
[1754496361129,10.45740874,169.49,169.42,43.44]
[1754496361130,9.75740874,169.46,169.42,43.44]
[1754496361300,28.10650534,169.45,169.42,49.34238733]
[1754496361505,37.86391408,169.45,169.42,49.34238733]
[1754496362032,9.75740874,169.44,169.42,43.44]
[1754496362210,10.45740874,169.44,169.42,43.44]
[1754496362410,37.16391408,169.45,169.42,43.44]
[1754496362725,37.86391408,169.45,169.42,43.44]
[1754496362909,27.40650534,169.45,169.42,49.34245674]
[1754496363248,37.16391408,169.45,169.42,49.34245674]
[1754496363413,37.88391408,169.45,169.42,49.34245674]
[1754496363815,37.88391408,169.45,169.42,49.40245674]
[1754496364338,10.47740874,169.44,169.42,49.40245674]
[1754496364647,0.72,169.44,169.42,49.40245674]
[1754496364945,37.16391408,169.45,169.42,49.40245674]
[1754496365106,27.40650534,169.45,169.42,49.40245674]
[1754496365422,27.40650534,169.45,169.43,9.75740874]
[1754496365618,27.40650534,169.45,169.42,49.40245674]
[1754496365619,27.40650534,169.45,169.44,9.75740874]
[1754496365824,27.40650534,169.45,169.42,49.40245674]
[1754496366045,27.40650534,169.45,169.44,9.75740874]
[1754496366254,0.72,169.53,169.45,15.24837714]
[1754496366408,10.47740874,169.53,169.48,9.75740874]
[1754496366610,9.75740874,169.52,169.49,43.44]
[1754496366838,9.75740874,169.5,169.47,43.44]
[1754496367135,10.47740874,169.5,169.48,5.90040122]
[1754496367332,145.9,169.49,169.48,5.90040122]
[1754496367631,145.9,169.48,169.47,49.34066227]
[1754496370214,145.9,169.48,169.47,43.44]
[1754496370416,156.37740874,169.48,169.47,49.34074939]
[1754496370631,156.37740874,169.48,169.43,9.75740874]
[1754496370632,10.47740874,169.48,169.43,43.42]
[1754496370845,84.16612548,169.54,169.42,26.06]
[1754496370846,32.10649988,169.44,169.42,0.06]
[1754496371150,6.10649988,169.43,169.42,17.794165]
[1754496371321,6.82649988,169.43,169.42,0.06]
[1754496371517,0.72,169.43,169.42,0.06]
[1754496371735,6.82649988,169.43,169.42,0.06]
[1754496372256,0.72,169.43,169.42,0.06]
[1754496372421,6.82649988,169.43,169.42,0.06]
[1754496372734,10.4901301,169.43,169.42,0.06]
[1754496373335,26.0,169.44,169.42,0.06]
[1754496373336,0.72,169.46,169.42,0.06]
[1754496373636,9.7701301,169.43,169.42,0.06]
[1754496373847,9.7701301,169.43,169.36,49.32458195]
[1754496374048,9.7701301,169.38,169.36,49.32458195]
[1754496374539,9.7701301,169.4,169.36,49.32458195]
[1754496374711,0.72,169.43,169.35,0.1]
[1754496374712,9.7701301,169.37,169.35,0.1]
[1754496374911,9.7701301,169.36,169.35,0.1]
[1754496375531,10.4901301,169.36,169.35,0.1]
[1754496375750,0.72,169.38,169.35,0.1]
[1754496376045,9.7701301,169.4,169.36,0.06]
[1754496376252,9.7701301,169.4,169.35,6.0049005]
[1754496376434,9.7701301,169.41,169.35,64.18722704]
[1754496376636,9.7701301,169.41,169.36,0.06]
[1754496376846,0.72,169.42,169.36,0.06]
[1754496376847,9.7701301,169.4,169.36,0.06]
[1754496377047,9.7701301,169.4,169.35,73.95735714]
[1754496377245,9.7701301,169.4,169.35,74.01735714]
[1754496377827,10.4901301,169.4,169.35,49.4249005]
[1754496378134,0.72,169.39,169.35,49.4249005]
[1754496378328,10.4901301,169.39,169.35,49.4249005]
[1754496378523,0.72,169.42,169.35,49.4249005]
[1754496378728,0.72,169.42,169.37,9.7701301]
[1754496378729,10.4901301,169.42,169.37,9.7701301]
[1754496378927,10.4901301,169.42,169.38,5.90388475]
[1754496379143,9.7701301,169.41,169.38,5.90388475]
[1754496379360,9.7701301,169.4,169.38,5.90388475]
[1754496379855,9.7701301,169.42,169.38,5.90388475]
[1754496380039,9.7701301,169.45,169.38,5.90388475]
[1754496380244,9.7701301,169.49,169.44,9.7701301]
[1754496380667,10.4901301,169.5,169.44,9.7701301]
[1754496380964,9.7701301,169.48,169.44,5.90179414]
[1754496381165,10.4901301,169.48,169.44,5.90179414]
[1754496381770,0.72,169.48,169.44,5.90179414]
[1754496381976,10.4901301,169.48,169.44,5.90179414]
[1754496382468,9.7701301,169.48,169.44,5.90179414]
[1754496382654,0.72,169.47,169.44,5.90179414]
[1754496382966,0.72,169.46,169.44,5.90179414]
[1754496383172,0.72,169.48,169.44,5.90179414]
[1754496383468,9.7701301,169.5,169.44,15.67192424]
[1754496383847,10.4901301,169.51,169.45,9.7701301]
[1754496384055,10.4901301,169.51,169.44,20.6562795]
[1754496384257,10.4901301,169.51,169.44,30.4264096]
[1754496384258,9.7701301,169.5,169.44,30.4264096]
[1754496384663,9.7701301,169.49,169.44,30.4264096]
[1754496384981,10.4901301,169.48,169.44,5.90179414]
[1754496385344,0.72,169.48,169.44,5.90179414]
[1754496385646,0.72,169.5,169.44,5.90179414]
[1754496385844,9.7701301,169.49,169.44,15.67192424]
[1754496386052,26.03,169.51,169.44,5.90179414]
[1754496386053,10.4901301,169.48,169.44,5.90179414]
[1754496386449,0.72,169.47,169.44,5.90179414]
[1754496386858,10.4901301,169.47,169.44,5.90179414]
[1754496387057,0.72,169.47,169.44,5.90179414]
[1754496387778,9.7701301,169.49,169.44,15.67192424]
[1754496388082,146.62,169.5,169.45,9.7701301]
[1754496388083,145.9,169.5,169.45,9.7701301]
[1754496388265,146.62,169.5,169.45,9.7701301]
[1754496388576,156.3901301,169.5,169.45,9.7701301]
[1754496388775,156.3901301,169.5,169.44,20.6562795]
[1754496388776,10.4901301,169.49,169.44,20.6562795]
[1754496388962,10.4901301,169.48,169.44,5.90179414]
[1754496389157,0.72,169.47,169.44,5.90179414]
[1754496389371,9.7701301,169.48,169.44,5.90179414]
[1754496389572,145.9,169.5,169.47,9.7701301]
[1754496389785,0.03,169.51,169.49,9.7701301]
[1754496389979,0.03,169.51,169.5,9.7701301]
[1754496390166,0.03,169.51,169.5,9.8301301]
[1754496390365,35.8001301,169.57,169.5,9.8301301]
[1754496390366,0.03,169.57,169.5,25.22066881]
[1754496390559,0.03,169.57,169.49,26.28432314]
[1754496390560,0.03,169.57,169.56,9.7701301]
[1754496390875,0.03,169.57,169.55,43.4]
[1754496391256,10.4901301,169.56,169.53,5.898661]
[1754496391586,0.72,169.56,169.53,5.898661]
[1754496391770,10.4901301,169.56,169.53,5.898661]
[1754496391966,0.72,169.56,169.53,5.898661]
[1754496392770,10.4901301,169.56,169.53,5.898661]
[1754496393272,10.4901301,169.56,169.52,5.89895548]
[1754496393273,0.72,169.55,169.52,5.89895548]
[1754496393473,9.7701301,169.55,169.52,5.89895548]
[1754496394060,10.4901301,169.55,169.52,5.89895548]
[1754496394270,0.03,169.57,169.54,9.7701301]
[1754496394469,0.03,169.57,169.55,9.7701301]
[1754496394683,0.03,169.57,169.53,58.85053871]
[1754496394985,0.03,169.57,169.54,9.7701301]
[1754496395280,0.03,169.57,169.56,9.7701301]
[1754496395697,0.03,169.57,169.54,20.70409578]
[1754496395874,0.03,169.57,169.55,9.7701301]
[1754496396464,0.03,169.57,169.56,10.35989183]
[1754496396789,0.03,169.57,169.56,38.1923121]
[1754496396996,0.03,169.57,169.56,2.362182]
[1754496397290,0.03,169.57,169.55,12.1328691]
[1754496397497,0.03,169.57,169.55,2.362739]
[1754496397661,0.03,169.57,169.55,5.8979652]
[1754496397864,0.72,169.56,169.54,5.89822131]
[1754496398065,0.03,169.57,169.54,5.89822131]
[1754496398366,0.03,169.57,169.55,9.7701301]
[1754496398570,0.03,169.57,169.56,9.7701301]
[1754496398866,0.03,169.57,169.56,9.8301301]
[1754496399359,0.03,169.57,169.56,15.72774746]
[1754496399566,1e-08,169.57,169.56,15.72774746]
[1754496400166,1e-08,169.57,169.56,16.0120706]
[1754496400371,1e-08,169.57,169.56,15.66774746]
[1754496401195,1e-08,169.57,169.56,16.0120706]
[1754496401603,1e-08,169.57,169.56,57.11828617]
[1754496401776,1e-08,169.57,169.56,47.34815607]
[1754496401974,1e-08,169.57,169.56,57.11828617]
[1754496402909,0.03,169.62,169.57,0.28432314]
[1754496403203,0.03,169.62,169.56,101.35041638]
[1754496403204,0.03,169.62,169.61,9.7701301]
[1754496403410,11.68208828,169.59,169.58,42.04023089]
[1754496403712,145.9,169.61,169.58,89.99922631]
[1754496403887,146.62,169.61,169.58,99.76935641]
[1754496404207,146.62,169.61,169.58,73.76935641]
[1754496404592,146.62,169.61,169.58,49.2569218]
[1754496404778,0.72,169.6,169.58,49.2569218]
[1754496405589,145.9,169.59,169.58,49.2569218]
[1754496406306,146.62,169.59,169.58,5.8969218]
[1754496406513,156.3901301,169.59,169.57,5.89714727]